[Event "ITT 1st Parada Jamundi 2022"]
[Site "Jamundi Valle"]
[Date "2022.12.07"]
[Round "4.1"]
[White "Cardoso Cardoso, Jose Gabriel"]
[Black "Henriquez Villagra, Cristobal"]
[Result "0-1"]
[ECO "B12"]
[WhiteElo "2483"]
[BlackElo "2587"]
[Annotator "TA"]
[PlyCount "120"]
[EventDate "2022.12.05"]
[EventType "swiss"]
[EventCountry "COL"]
[SourceTitle "playchess.com"]
[Source "ChessBase"]
[SourceQuality "1"]
[TimeControl "5400+30"]

{[%evp 10,119,29,16,49,30,34,21,20,18,39,32,41,4,25,0,10,25,39,21,68,17,15,0,0,0,0,-26,-22,-30,-22,-29,-29,-29,0,-27,-36,-44,-29,-37,4,-17,-18,-38,0,0,0,-29,-30,-30,-29,-29,0,-65,-39,-41,-38,-39,-39,-72,-65,-72,-72,-73,-72,-72,-38,-38,0,-239,-253,-289,28,43,30,21,99,52,181,190,209,88,89,0,8,0,124,122,152,31,31,29,33,0,0,0,0,0,123,-39,0,0,0,0,115,-29996,-29997,-29997,-29998,-29998,-29999,-29999]} 1. e4 {[%emt 0:00:05]} c6 {[%emt 0:10:29]} 2. d4 {[%emt 0:00:13]} d5 {[%emt 0:00:04]} 3. e5 {[%emt 0:00:18]} Bf5 {[%emt 0:00:06]} 4. Nf3 {[%emt 0:00:30]} e6 {[%emt 0:00:05]} 5. Be2 {[%emt 0:00:18]} Nd7 {[%emt 0:00:05]} 6. O-O {[%emt 0:00:17]} a5 {[%emt 0:00:03] B12: Caro-Kann: Advance Variation.} 7. a4 {[%emt 0:01:22]} f6 {[%emt 0:02:44]} 8. Be3 {[%emt 0:05:30]} fxe5 {[%emt 0:00:35] [#] The position is equal.} 9. Nxe5 $146 {[%emt 0:01:11]} ({Predecessor:} 9. dxe5 Bc5 10. Bxc5 Nxc5 11. Nd4 Ne7 12. Bh5+ g6 13. Be2 Qb6 14. g4 Be4 15. Nc3 {0-1 (36) Kryvoruchko,Y (2658)-Eljanov,P (2697) Germany 2022}) 9... Nxe5 {[%emt 0:10:48]} 10. dxe5 {[%emt 0:00:03]} Bg6 {[%emt 0:00:06]} 11. Bd3 {[%emt 0:10:42]} Ne7 {[%emt 0:07:08]} 12. f4 {[%emt 0:01:06]} Nf5 {[%emt 0:03:10]} 13. Bf2 {[%emt 0:00:13]} h5 {[%emt 0:03:33]} 14. Nd2 {[%emt 0:01:15]} Be7 {[%emt 0:01:13]} (14... c5 $11) 15. Nf3 {[%emt 0:01:07]} (15. Nb3 $14) 15... c5 $1 $11 {[%emt 0:00:52]} 16. c4 {[%emt 0:12:21]} d4 {[%emt 0:08:55]} 17. Be4 {[%emt 0:03:05]} Qc7 {[%emt 0:00:14]} 18. g3 {[%emt 0:02:08]} O-O-O {[%emt 0:02:33][%cal Be8c8,Bc8b8,Bb8a7,Ba7a6][%mdl 32]} 19. Qd3 {[%emt 0:00:49] Inhibits Ne3.} Rhf8 {[%emt 0:00:37]} 20. Be1 {[%emt 0:05:24]} Be8 {[%emt 0:03:52][%cal Oh5h4]} 21. Bd2 {[%emt 0:00:39]} Kb8 {[%emt 0:03:33]} 22. Ra3 {[%emt 0:02:06]} (22. Qb3 $5 {[%cal Rd2a5]} Rd7 23. Ne1 $11) 22... Ka7 {[%emt 0:02:09]} 23. Raa1 {[%emt 0:00:41]} Rc8 {[%emt 0:06:34]} 24. b3 {[%emt 0:03:57]} Bd8 {[%emt 0:02:26]} 25. Rf2 {[%emt 0:12:10]} (25. Kf2 {is more complex.} Be7 26. Ke2 Rd8 27. Rg1) 25... Bc6 {[%emt 0:01:16]} 26. Re1 {[%emt 0:01:10]} Ka6 {[%emt 0:00:22]} 27. Kf1 {[%emt 0:01:14]} Be7 {[%emt 0:01:34]} 28. Kg1 {[%emt 0:02:40]} Rf7 {[%emt 0:01:53]} 29. Ref1 {[%emt 0:02:50]} Rcf8 {[%emt 0:00:33]} 30. Bc1 {[%emt 0:02:23]} h4 {[%emt 0:01:51]} 31. Rg2 {[%emt 0:04:40]} (31. g4 $11 Bxe4 32. Qxe4) 31... hxg3 {[%emt 0:00:36]} 32. hxg3 {[%emt 0:00:06]} Qb6 {[%emt 0:04:56]} 33. Bxc6 {[%emt 0:03:24]} Qxc6 {[%emt 0:00:05]} 34. Qe2 {[%emt 0:04:59] Against g5} g6 {[%emt 0:06:32][%cal Bg7g6,Bg6g5][%mdl 32]} 35. Re1 {[%emt 0:06:47]} Rh7 {[%emt 0:02:14][%cal Og6g5] Black is more active.} 36. Qe4 {[%emt 0:01:26] Against g5} (36. g4 $2 Nh4 37. Nxh4 Rxh4 $19) 36... Qb6 {[%emt 0:00:06]} (36... Rh3 {seems wilder.} 37. Kf2 Rb8 38. Bd2 Qb6) 37. Qd3 {[%emt 0:00:12]} (37. g4 $2 Nh4 38. Bd2 Nxg2 39. Kxg2 Qc6 40. Qxc6+ bxc6 $19) 37... Rhf7 {[%emt 0:05:02]} 38. Bd2 {[%emt 0:01:12]} Rh8 {[%emt 0:02:44]} 39. Bc1 $2 {[%emt 0:00:40] [#]} (39. Rh2 $1 $11 Rxh2 40. Kxh2) 39... g5 $1 $19 {[%emt 0:01:10]} 40. g4 {[%emt 0:02:23]} Ne3 {[%emt 0:00:46]} (40... Nh4 $19 41. Nxh4 Rxh4 42. fxg5 Rfh7) 41. Bxe3 $11 {[%emt 0:00:11]} dxe3 {[%emt 0:00:04]} 42. f5 {[%emt 0:00:24]} (42. Nxg5 Rxf4 43. Ne4 Rh4 $15) 42... Rd8 {[%emt 0:03:54] Prevents f6.} 43. Qe4 {[%emt 0:00:30]} (43. Qxe3 exf5 44. gxf5 (44. Nxg5 $2 f4 $19) 44... Rxf5 $17) ({Better is} 43. Qb1 $16 exf5 44. gxf5 (44. Rxe3 fxg4 45. Nh2 Rd4 $17)) 43... Qxb3 {[%emt 0:00:36]} (43... exf5 $14 44. gxf5 Qxb3) 44. f6 $18 {[%emt 0:00:57]} (44. Qxe3 $2 Rd3 45. Qc1 Rxf3 $19) (44. Rxe3 exf5 45. gxf5 Qxa4 $16) 44... Bxf6 {[%emt 0:00:04] And now ...Be7 would win.} 45. exf6 {[%emt 0:00:24]} (45. Rxe3 $18 {is the precise move to win.} Qxa4 46. exf6 Rxf6 47. Nxg5 Qa1+ 48. Kh2 Rh6+ 49. Nh3 (49. Rh3 Qh8 $16)) 45... Rxf6 $16 {[%emt 0:00:01]} 46. Rxe3 {[%emt 0:01:32]} ({White should play} 46. Ne5 $16) 46... Qd1+ $11 {[%emt 0:00:47]} 47. Ne1 {[%emt 0:01:43] Threatens to win with Rb2.} Rd4 {[%emt 0:03:54]} (47... Rf4 $1 $11 48. Qxe6+ Ka7) 48. Qe5 $1 $16 {[%emt 0:00:57][%csl LRc5,LRf6,LRg5]} Qc1 {[%emt 0:00:08][%cal Ob7b6]} 49. Kh2 {[%emt 0:01:14]} ({Only move:} 49. Qxg5 $16 {Rxe6+ is the strong threat.} Rxc4 50. Qxf6 Qxe3+ 51. Qf2) 49... Rh6+ $14 {[%emt 0:00:22]} 50. Kg3 {[%emt 0:00:07]} Rh4 {[%emt 0:00:29]} 51. Qxe6+ {[%emt 0:01:06]} (51. Re4 $5 {[%cal Re4d4]} Qc3+ 52. Kf2 $14) 51... Ka7 {[%emt 0:00:03]} 52. Kf2 {[%emt 0:00:47] aiming for Nf3.} Rh1 {[%emt 0:01:10]} 53. Nf3 {[%emt 0:01:41][%csl LRd4,LRg5] Hoping for Re1.} Rxc4 {[%emt 0:00:58]} (53... Qf1+ $11 54. Kg3 Rd2) 54. Qe5 $2 {[%emt 0:00:54]} (54. Kg3 $16) 54... Rc2+ {[%emt 0:00:24][%mdl 1024] Black has compensation.} ({Resist} 54... Rxa4 55. Kg3 $16 (55. Nxg5 Qf1+ 56. Kg3 Rxg4+ 57. Kxg4 Qxg2+ 58. Kf4 Qh2+ 59. Rg3 Qd2+ 60. Re3 Rh4+ 61. Kf3 Qd1+ 62. Kf2 Rc4 $15)) (54... Rxg4 $5 55. Re1 Rxe1 56. Nxe1 Rf4+ 57. Kg1 Rxa4 $15) 55. Re2 {[%emt 0:00:37][%cal Oe2c2] Black must now prevent Rxc2!} Rc3 $40 {[%emt 0:00:06][%mdl 128] ( -> ...Qf1+). White needs to defend precisely. The board is on fire.} 56. Kg3 {[%emt 0:00:55]} (56. Nxg5 $2 Rf1#) 56... Rh7 {[%emt 0:01:08]} (56... Qa3 $11 57. Ref2 Qc1) 57. Qf5 $2 {[%emt 0:00:39][%mdl 8192] [#]} (57. Re1 $16 Rf7 58. Rf2 (58. Rxc1 Rfxf3+ 59. Kh2 Rh3+ 60. Kg1 Rxc1+ 61. Kf2 Rc2+ 62. Kg1 Rc1+ 63. Kf2 Rc2+ 64. Kg1 Rc1+ $11)) 57... Rh3+ $3 {[%emt 0:00:16][%mdl 576] Black mates.} 58. Kf2 {[%emt 0:00:38]} Rcxf3+ {[%emt 0:00:04]} 59. Qxf3 {[%emt 0:00:04]} Rxf3+ 60. Kxf3 {[%emt 0:00:00]} Qf4# {[%emt 0:02:28] Weighted Error Value: White=0.39/Black=0.24 (precise)} 0-1

[Event "ITT 1st Parada Jamundi 2022"]
[Site "Jamundi Valle"]
[Date "2022.12.07"]
[Round "4.2"]
[White "Mirzoev, Azer"]
[Black "Cruz, Cristhian"]
[Result "1/2-1/2"]
[ECO "D30"]
[WhiteElo "2462"]
[BlackElo "2552"]
[Annotator "TA"]
[PlyCount "38"]
[EventDate "2022.12.05"]
[EventType "swiss"]
[EventCountry "COL"]
[SourceTitle "playchess.com"]
[Source "ChessBase"]
[SourceQuality "1"]
[TimeControl "5400+30"]

{[%evp 9,38,16,11,0,14,7,9,6,18,0,0,0,0,0,0,0,0,0,0,0,0,0,0,-3,-10,-10,-13,-8,-6,-2,0]} 1. d4 {[%emt 1:31:00]} e6 {[%emt 1:31:00]} 2. Nf3 {[%emt 0:00:30]} Nf6 {[%emt 0:00:00]} 3. c4 {[%emt 0:00:00]} d5 {[%emt 0:00:00]} 4. e3 {[%emt 0:00:00]} a6 {[%emt 0:00:00]} 5. Nbd2 {[%emt 0:00:00]} c5 {[%emt 0:00:00] The position is equal.} 6. dxc5 {[%emt 0:00:00] D30: Queen's Gambit Declined: Systems without Nc3.} Bxc5 {[%emt 0:00:00]} 7. a3 {[%emt 0:00:00]} a5 {[%emt 0:00:00]} 8. cxd5 {[%emt 0:00:00]} exd5 {[%emt 0:00:00]} 9. Nb3 {[%emt 0:00:00]} Bb6 {[%emt 0:00:00]} 10. Be2 {[%emt 0:00:00]} Nc6 {[%emt 0:00:00]} 11. O-O {[%emt 0:00:00]} O-O {[%emt 0:00:00]} 12. Nbd4 {[%emt 0:00:00] [#]} Ne4 $146 {[%emt 0:00:00]} ({Predecessor:} 12... Qe7 13. b3 Rd8 14. Bb2 Bg4 15. h3 Bxf3 16. Nxc6 bxc6 17. Bxf3 Ne4 18. Qc2 Rd6 19. Bxe4 dxe4 {1-0 (51) Gorcsi,G (2220)-To,N (2373) Budapest 2019}) 13. Bd2 {[%emt 0:00:00]} Bxd4 {[%emt 0:00:00]} 14. Nxd4 {[%emt 0:00:00]} Nxd4 {[%emt 0:00:00]} 15. exd4 {[%emt 0:00:00]} Qb6 {[%emt 0:00:00][%csl LRb2,LRd4]} 16. Bc3 {[%emt 0:00:00]} Bf5 {[%emt 0:00:00]} 17. Bd3 {[%emt 0:00:00]} Nxc3 {[%emt 0:00:00]} 18. bxc3 {[%emt 0:00:00]} Bxd3 {[%emt 0:00:00]} 19. Qxd3 {[%emt 0:00:00]} Rfc8 {[%emt 0:00:00] An interesting draw.   Weighted Error Value: White=0.03 (flawless) /Black=0.00 (flawless)} 1/2-1/2

[Event "ITT 1st Parada Jamundi 2022"]
[Site "Jamundi Valle"]
[Date "2022.12.07"]
[Round "4.3"]
[White "Delgado Ramirez, Neuris"]
[Black "Herrera, Juan Sebastian"]
[Result "1-0"]
[ECO "B40"]
[WhiteElo "2572"]
[BlackElo "2297"]
[Annotator "TA"]
[PlyCount "71"]
[EventDate "2022.12.05"]
[EventType "swiss"]
[EventCountry "COL"]
[SourceTitle "playchess.com"]
[Source "ChessBase"]
[SourceQuality "1"]
[TimeControl "5400+30"]

{[%evp 9,71,6,0,-45,-38,-47,-48,-52,-17,-20,-5,-15,-23,-25,-11,0,-14,-10,40,37,52,36,60,48,52,60,45,49,59,50,47,10,43,44,48,47,89,64,77,79,85,49,95,99,100,67,68,75,65,39,63,62,437,435,529,536,662,689,1043,1019,1019,992,997,975]} 1. e4 {[%emt 0:11:07]} c5 {[%emt 0:00:07]} 2. Nf3 {[%emt 0:00:18]} e6 {[%emt 0:00:10]} 3. b3 {[%emt 0:00:37]} a6 {[%emt 0:00:10]} 4. Bb2 {[%emt 0:00:08]} Nc6 {[%emt 0:00:10]} 5. g3 {[%emt 0:02:21]} d5 {[%emt 0:00:24]} 6. e5 {[%emt 0:00:37] B40: Sicilian: 2...e6, Unusual lines.} g5 {[%emt 0:11:25]} 7. h3 {[%emt 0:01:35]} Bg7 {[%emt 0:00:15]} 8. Qe2 {[%emt 0:00:59] Black is slightly better.} h6 {[%emt 0:06:25]} 9. c3 {[%emt 0:00:37] [#]} Nge7 $146 {[%emt 0:07:06]} ({Predecessor:} 9... f6 10. exf6 Qxf6 11. Bg2 Nge7 12. O-O O-O 13. d4 e5 14. dxe5 Nxe5 15. Nxe5 Qxe5 16. Qxe5 Bxe5 {½-½ (61) Mamedov,R (2651)-Svidler,P (2747) Moscow 2013}) 10. d4 {[%emt 0:01:12]} Qa5 {[%emt 0:00:11]} 11. Nbd2 {[%emt 0:10:38]} Bd7 {[%emt 0:00:09]} 12. a3 {[%emt 0:01:13]} cxd4 {[%emt 0:00:28]} 13. cxd4 {[%emt 0:00:04]} (13. b4 {[#]} d3 $1 14. Qe3 (14. Qxd3 $2 Qc7 $17) 14... Qc7 15. Bxd3 Nxe5 16. Nxe5 Bxe5 $17) 13... Qb6 {[%emt 0:00:58]} (13... O-O $11) 14. b4 $1 $14 {[%emt 0:08:59]} Na5 {[%emt 0:16:32] Inhibits Nb3.} 15. Qd1 {[%emt 0:04:44] Prevents Ba4.} (15. bxa5 Qxb2 16. Qd1 (16. Rb1 Qxa3 17. Qd3 Qxa5 $17) 16... Nc6 $17) 15... Rc8 {[%emt 0:01:23]} 16. Rc1 {[%emt 0:00:03]} O-O {[%emt 0:03:34]} 17. Rc5 $1 {[%emt 0:00:21]} (17. bxa5 $2 Qxb2 18. Rb1 Qxa3 $17) 17... Nac6 {[%emt 0:00:35]} 18. Bd3 {[%emt 0:06:28]} f6 {[%emt 0:04:59]} 19. exf6 {[%emt 0:02:20]} Rxf6 {[%emt 0:00:39]} 20. O-O {[%emt 0:00:05]} (20. h4 $5 {[%cal Rh4g5]}) 20... Rcf8 {[%emt 0:00:43]} (20... Rf7 $5 {[%cal Ra6a5]}) 21. h4 {[%emt 0:01:30]} gxh4 {[%emt 0:07:52]} 22. Nxh4 {[%emt 0:01:28][%cal Bf3h4,Bh4g2,Bg2e3,Be3g2,Bg2f4][%mdl 32]} Be8 {[%emt 0:05:34]} 23. Qe2 {[%emt 0:03:52]} Qc7 {[%emt 0:09:28]} 24. f4 {[%emt 0:03:48]} Ng6 {[%emt 0:01:09] [#] Threatens to win with ...Nxh4.} 25. Ng2 {[%emt 0:00:32] White has more active pieces. The black rooks are badly placed.} Qd6 {[%emt 0:01:19]} (25... Nge7 $1 $14 {is more appropriate.}) 26. Nf3 $36 {[%emt 0:01:30][%mdl 2048] White is on the roll.} Nce7 {[%emt 0:00:14]} 27. Ne3 {[%emt 0:02:32]} (27. Re1 {simplifies} Nf5 28. Bxf5 exf5 29. Qc2) 27... Nxf4 $1 {[%emt 0:16:22]} 28. gxf4 {[%emt 0:00:47]} Qxf4 {[%emt 0:02:23] And now ...Bh5 would win.} 29. Qe1 {[%emt 0:00:04] Black must now prevent Rc2.} Bg6 {[%emt 0:01:29]} 30. Ng2 $1 {[%emt 0:02:15]} Bxd3 $4 {[%emt 0:02:32][%mdl 8192] Loses the game.} 31. Nxf4 $18 {[%emt 0:00:11] White is clearly winning.} Bxf1 {[%emt 0:00:02]} 32. Bc1 {[%emt 0:02:04]} ({Weaker is} 32. Kxf1 Rxf4 33. Qxe6+ R8f7 $18) 32... Bb5 {[%emt 0:00:36]} 33. Rc7 {[%emt 0:00:20]} Ng6 {[%emt 0:00:29]} 34. Qg3 {[%emt 0:02:11]} R8f7 {[%emt 0:00:54]} 35. Rxf7 {[%emt 0:00:41]} Kxf7 {[%emt 0:00:02]} 36. Ne5+ {[%emt 0:02:00] Weighted Error Value: White=0.09 (flawless) /Black=0.46} 1-0

[Event "ITT 1st Parada Jamundi 2022"]
[Site "Jamundi Valle"]
[Date "2022.12.07"]
[Round "4.4"]
[White "Avila Pavas, Santiago"]
[Black "Campos Gomez, Manuel"]
[Result "1-0"]
[ECO "B04"]
[WhiteElo "2461"]
[BlackElo "2322"]
[Annotator "TA"]
[PlyCount "153"]
[EventDate "2022.12.05"]
[EventType "swiss"]
[EventCountry "COL"]
[SourceTitle "playchess.com"]
[Source "ChessBase"]
[SourceQuality "1"]
[TimeControl "5400+30"]

{[%evp 19,153,25,44,17,18,32,26,16,40,49,42,40,63,72,75,84,75,77,70,0,0,0,0,0,0,-10,17,10,25,20,22,17,22,0,0,0,11,23,17,0,61,33,62,0,0,0,0,0,0,0,0,0,0,0,0,0,0,-23,0,-33,-36,-77,-28,-96,-83,-89,0,0,0,-47,-25,-130,-135,-195,-141,-148,-150,-156,-148,-156,-119,-138,-112,-108,-52,-93,-68,-135,-23,-69,-7,-81,0,-124,-109,-110,0,0,0,0,0,0,0,0,0,0,0,0,8,8,10,9,147,119,574,583,559,546,449,356,348,345,305,223,223,230,234,227,214,214,5175,5046,4627,4627,29961,29962]} 1. e4 {[%emt 0:00:14][%cal Be2e4,Be4e5][%mdl 32]} Nf6 {[%emt 0:00:07]} 2. e5 {[%emt 0:00:19]} Nd5 {[%emt 0:00:05]} 3. d4 {[%emt 0:00:15]} d6 {[%emt 0:00:05]} 4. c4 {[%emt 0:00:06]} Nb6 {[%emt 0:00:03]} 5. exd6 {[%emt 0:00:10]} cxd6 {[%emt 0:00:05]} 6. Nc3 {[%emt 0:00:06]} g6 {[%emt 0:00:04]} 7. h3 {[%emt 0:00:07]} Bg7 {[%emt 0:00:05]} 8. Nf3 {[%emt 0:00:05]} O-O {[%emt 0:02:05]} 9. Be2 {[%emt 0:00:08]} Nc6 {[%emt 0:01:42]} 10. O-O {[%emt 0:00:25]} Bf5 {[%emt 0:03:18]} 11. d5 {[%emt 0:00:11] B04: Alekhine's Defence: 4 Nf3.} (11. Bf4 {feels hotter.} e5 12. Bg5 Qd7 13. dxe5 dxe5 14. c5) 11... Na5 {[%emt 0:00:15]} 12. Nd4 $1 {[%emt 0:00:09]} (12. g4 Bd7 13. Qd3 Naxc4 $17) 12... Naxc4 {[%emt 0:00:51]} 13. a4 {[%emt 0:00:12] White has an edge.} a5 {[%emt 0:12:48]} 14. Nxf5 {[%emt 0:00:12]} gxf5 {[%emt 0:00:04]} 15. Re1 {[%emt 0:00:13] [#]} Rc8 $146 {[%emt 0:08:36]} ({Predecessor:} 15... Qd7 16. Bd3 Kh8 17. Qh5 e6 18. Qh4 Rac8 19. Bg5 Rg8 20. Kh1 Rc5 21. Ne2 Ne5 {1-0 (79) Azarov,S (2586)-Yoo,C (2449) Saint Louis 2019}) 16. Bd3 {[%emt 0:03:02][%mdl 1024] White has compensation.} Qd7 {[%emt 0:02:41]} 17. Qh5 {[%emt 0:00:12]} e6 {[%emt 0:00:22]} 18. Bh6 $1 {[%emt 0:00:13]} Ne5 {[%emt 0:18:32]} (18... exd5 $2 19. Bxg7 f6 20. Bxf8 $18) 19. Bb5 {[%emt 0:05:35]} (19. Rad1 $14) 19... Qe7 $11 {[%emt 0:02:37]} 20. Rad1 {[%emt 0:00:10] Strongly threatening Bg5.} Rxc3 $1 {[%emt 0:15:00]} 21. bxc3 {[%emt 0:02:38][%cal Oc3c4]} Nxd5 {[%emt 0:00:13]} 22. c4 {[%emt 1:00:54]} Nc3 {[%emt 0:00:49]} (22... Nf6 $5 {[%cal Rf6h5]} 23. Qg5 Ng6 $11) 23. Rc1 {[%emt 0:00:10]} Ne4 {[%emt 0:04:40] Pair of Knights!} 24. c5 $1 {[%emt 0:00:17]} Ng6 {[%emt 0:04:11]} 25. cxd6 {[%emt 0:05:19]} Qxd6 {[%emt 0:00:17]} 26. Bxg7 {[%emt 0:01:04]} Kxg7 {[%emt 0:00:08]} 27. Red1 {[%emt 0:02:51]} Qf4 {[%emt 0:03:23]} 28. Qe2 {[%emt 0:00:20]} Qg5 {[%emt 0:00:39]} 29. Rc7 {[%emt 0:00:36]} (29. Bd3 $5 {[%cal Rd3e4]}) 29... Nh4 {[%emt 0:00:45]} (29... Nf4 $11 30. Qf3 Kg8) 30. f3 {[%emt 0:02:48] The board is on fire.} (30. Rxb7 $2 Qxg2#) 30... Ng3 {[%emt 0:04:27]} 31. Qd2 {[%emt 0:08:24] White is more active.} (31. Qxe6 $2 Ne4 $1 {[%mdl 512]} 32. Qe5+ (32. fxe4 $2 Qxg2#) (32. Qa2 $2 Nxf3+ 33. Kf1 Qe3 $19) 32... Kg8 $19) (31. Qb2+ $14 Kg8 32. Rxb7) 31... f4 $1 {[%emt 0:00:57]} 32. Bf1 {[%emt 0:00:55]} (32. Qxa5 $2 Ne2+ 33. Kf2 Qxg2+ 34. Ke1 Nxf3#) 32... Kh6 {[%emt 0:03:33]} 33. Qf2 {[%emt 0:01:55]} (33. Rxb7 $2 Ne4 34. Qd3 (34. fxe4 $2 Nf3+ 35. Kh1 Nxd2 $19) 34... Rd8 $3 {[%mdl 512]} 35. Qxe4 (35. Qxd8 $2 Nxf3+ 36. Kh1 Ng3#) 35... Rxd1 $19) 33... b6 {[%emt 0:04:36]} 34. Rdd7 {[%emt 0:00:40]} (34. Qxb6 $2 Nxf1 35. Qf2 Ne3 $19) 34... Qg7 {[%emt 0:00:53]} 35. Qd2 {[%emt 0:02:17]} (35. Qxb6 $2 Qa1 36. Qf2 (36. Rxf7 $2 Qxf1+ 37. Kh2 Qxg2#) 36... Nhf5 $19) 35... Qf6 {[%emt 0:01:55]} 36. Qc3 {[%emt 0:01:20]} Qg5 {[%emt 0:00:47][%cal Og3e2] And now ...Ne2+! would win.} 37. Qd2 {[%emt 0:00:00] Against Ne2+} (37. Rxf7 Rxf7 38. Kf2 Rxc7 39. Qxc7 Nxf1 40. Ke1 Qg3+ 41. Kd1 Ne3+ 42. Kc1 Qe1+ 43. Kb2 Nd1+ 44. Kb3 Nxg2 45. Qxb6 Qe3+ 46. Qxe3 fxe3 47. h4 e2 48. Kc4 e1=Q 49. Kc5 Qc3+ 50. Kb6 Nf4 51. Kb7 Nd5 52. Ka6 Qc6+ 53. Ka7 Qb6+ 54. Ka8 Nc7#) 37... Qf6 $40 {[%emt 0:00:47][%mdl 128] White needs to defend precisely.} 38. Rd4 {[%emt 0:01:05]} Ng6 {[%emt 0:00:36]} (38... Nxf3+ $5 39. gxf3 Rg8 40. Qxf4+ (40. Rxf4 $2 Ne2+ 41. Kh1 Nxf4 $19) 40... Qxf4 41. Rxf4 Ne2+ 42. Kf2 Nxf4 43. Rxf7 Nd5 $11) 39. Rcc4 {[%emt 0:00:31][%cal Rd4f4] Black must now prevent Rxf4.} Nf5 {[%emt 0:01:27]} 40. Rd3 {[%emt 0:03:10]} Qe5 {[%emt 0:02:43]} (40... Qg5 $17) 41. Re4 {[%emt 0:00:55]} (41. Rc1 $11) 41... Qc5+ $17 {[%emt 0:00:17]} 42. Qf2 {[%emt 0:00:01]} Qc1 {[%emt 0:01:06]} (42... Ne3 $1 $17) 43. Re1 $11 {[%emt 0:00:32]} (43. Qxb6 $2 Ng3 44. Qf2 Nxe4 45. fxe4 Rb8 $19) (43. Qd2 {is interesting.} Rc8 44. Re1 Qc5+ 45. Kh1) 43... Qc6 {[%emt 0:00:13]} 44. Qd2 {[%emt 0:01:07]} (44. Rb3 $11) 44... Qxa4 $15 {[%emt 0:00:49]} 45. g4 {[%emt 0:00:27]} (45. Qb2 $1 $11 {was the only way to keep the balance.}) 45... Ne3 $17 {[%emt 0:00:50]} 46. Rd4 {[%emt 0:00:02]} (46. Qc3 $17 {was necessary.}) 46... Qc2 {[%emt 0:00:47]} (46... Qc6 $19 47. Be2 Qc5) 47. Rc1 {[%emt 0:00:01]} Qxd2 48. Rxd2 {[%emt 0:00:01]} Ne5 {[%emt 0:01:09]} 49. Kf2 {[%emt 0:00:06]} Kg5 {[%emt 0:00:39]} 50. Bb5 {[%emt 0:00:09]} Kh4 {[%emt 0:00:33]} 51. Rd4 {[%emt 0:00:39]} Nd5 {[%emt 0:00:20]} 52. Re1 {[%emt 0:00:24]} f6 {[%emt 0:00:35]} 53. Rc1 {[%emt 0:00:58] Prevents Rc8.} (53. Bd7 $1 $15) 53... Rh8 {[%emt 0:00:14]} (53... Kxh3 $2 54. Rh1#) (53... Ra8 $17 {aiming for ...a4.} 54. Ba4 h5) 54. Ba6 $11 {[%emt 0:00:47] Inhibits a4.} Nb4 {[%emt 0:01:12]} (54... Kxh3 $2 55. Rh1#) ({Black should try} 54... b5 $15 55. Bxb5 h5) 55. Bb5 {[%emt 0:01:47]} (55. Be2 $1 $11) 55... Nd5 {[%emt 0:00:07]} (55... Kxh3 $2 56. Rh1#) (55... h5 $1 $17 {[%cal Rh5g4] Threatens to win with ...hxg4.} 56. gxh5 Kxh5) 56. Bd3 {[%emt 0:00:42]} (56. Ba6 $11 {remains equal.}) 56... Nxd3+ $17 {[%emt 0:01:23]} (56... Kxh3 $2 57. Rh1#) 57. Rxd3 {[%emt 0:00:01][%mdl 4096] Endgame KRR-KRN} Kg5 {[%emt 0:01:02]} (57... Kxh3 $2 58. Rh1#) ({Black should play} 57... a4 $1 $17 {Hoping for ...b5.} 58. Re1 Ne3) 58. Re1 $1 $11 {[%emt 0:00:50]} Ne3 {[%emt 0:00:30]} 59. h4+ {[%emt 0:01:13]} Kxh4 {[%emt 0:00:28]} 60. Rd6 {[%emt 0:00:00][%csl LRb6,LRe6]} b5 {[%emt 0:00:26]} 61. Rh1+ {[%emt 0:00:19]} Kg5 {[%emt 0:00:02]} 62. Rh5+ {[%emt 0:00:11]} Kg6 {[%emt 0:00:01][%cal Oe6e5] ...e5! is the strong threat.} 63. Rxb5 {[%emt 0:00:06]} Rc8 {[%emt 0:00:30][%cal Oe6e5]} 64. Rxe6 {[%emt 0:00:14] With the idea Ke2.} Rc2+ {[%emt 0:00:07]} 65. Ke1 {[%emt 0:00:20]} Ng2+ {[%emt 0:00:31]} (65... h6 $11) 66. Kd1 $16 {[%emt 0:00:35]} Rf2 $2 {[%emt 0:00:11][%mdl 8192]} (66... Rc7 $16 67. Ke2 (67. Rxa5 Nh4 $16) 67... Nh4) 67. g5 $18 {[%emt 0:00:05]} (67. Rxa5 Ne3+ 68. Ke1 Rxf3 $11) 67... Rf1+ {[%emt 0:01:01]} 68. Kd2 {[%emt 0:00:21]} Rf2+ {[%emt 0:00:08]} 69. Kc1 {[%emt 0:01:48]} Rf1+ {[%emt 0:00:04]} 70. Kb2 {[%emt 0:00:49]} Rf2+ {[%emt 0:00:05]} 71. Ka1 {[%emt 0:00:31]} Rf1+ {[%emt 0:00:06] [#]} 72. Ka2 $1 {[%emt 0:00:13]} Rf2+ {[%emt 0:00:01]} 73. Ka3 {[%emt 0:00:01]} Rxf3+ {[%emt 0:00:12]} 74. Ka4 {[%emt 0:00:01]} Rg3 $2 {[%emt 0:02:46]} (74... Rf1 75. Rxf6+ Kg7 76. Rb7+ (76. Rxa5 Ra1+ 77. Kb5 Rxa5+ 78. Kxa5 h5 $11) (76. Kxa5 Ne3 $16) 76... Kg8) 75. Rxf6+ {[%emt 0:00:33]} (75. gxf6 f3 76. Rc6 Rg4+ 77. Kxa5 Rf4 78. f7+ Kxf7 79. Rb7+ Kg8 80. Rc8+ Rf8 81. Rxf8+ Kxf8 82. Rxh7 f2 $11) 75... Kh5 {[%emt 0:00:01]} 76. g6+ {[%emt 0:00:17]} (76. Rxa5 Rxg5 77. Ra7 h6 $11) 76... Kh6 {[%emt 0:00:09] [#]} 77. Rh5+ $3 {[%emt 0:02:36][%mdl 576] Skewer, Promotion. Quite a comeback for White.   Weighted Error Value: White=0.19 (very precise) /Black=0.18 (very precise)} 1-0